[Event "Titled Tuesday Blitz November 07 Early 2023"]
[White "Hirneise, Jens"]
[Black "Kovalevsky, Stanislav"]
[WhiteFideId "24614734"]
[BlackFideId "13508598"]
[WhiteElo "2541"]
[BlackElo "2443"]
[Result "1-0"]
[Round "7"]
[TimeControl "180+1"]
[Date "2023.11.07"]
[WhiteClock "0:00:09"]
[BlackClock "0:00:22"]
[Board "116"]

1. d4 {[%clk 0:03:00]}  d5 {[%clk 0:02:59]} 2. Bg5 {[%clk 0:03:00]}  c5 {[%clk 0:02:57]} 3. dxc5 {[%clk 0:02:58]}  f6 {[%clk 0:02:57]} 4. Bh4 {[%clk 0:02:49]}  e5 {[%clk 0:02:57]} 5. e3 {[%clk 0:02:45]}  Bxc5 {[%clk 0:02:56]} 6. Nd2 {[%clk 0:02:44]}  Nc6 {[%clk 0:02:55]} 7. c3 {[%clk 0:02:36]}  Nge7 {[%clk 0:02:55]} 8. Ngf3 {[%clk 0:02:28]}  O-O {[%clk 0:02:51]} 9. Be2 {[%clk 0:02:28]}  a5 {[%clk 0:02:47]} 10. a4 {[%clk 0:02:25]}  Qe8 {[%clk 0:02:33]} 11. O-O {[%clk 0:02:23]}  Be6 {[%clk 0:02:33]} 12. Bg3 {[%clk 0:02:16]}  g5 {[%clk 0:02:29]} 13. Ne1 {[%clk 0:02:05]}  f5 {[%clk 0:02:25]} 14. Nd3 {[%clk 0:02:05]}  Bd6 {[%clk 0:02:22]} 15. f4 {[%clk 0:02:05]}  exf4 {[%clk 0:02:13]} 16. exf4 {[%clk 0:02:05]}  g4 {[%clk 0:02:11]} 17. Nb3 {[%clk 0:02:03]}  Ng6 {[%clk 0:02:08]} 18. Ndc5 {[%clk 0:01:56]}  Bf7 {[%clk 0:02:01]} 19. Nxb7 {[%clk 0:01:53]}  Bc7 {[%clk 0:01:37]} 20. Bb5 {[%clk 0:01:45]}  Qe6 {[%clk 0:01:11]} 21. N3c5 {[%clk 0:01:32]}  Qf6 {[%clk 0:01:02]} 22. Nd7 {[%clk 0:01:27]}  Qe6 {[%clk 0:01:02]} 23. Nxf8 {[%clk 0:01:21]}  Rxf8 {[%clk 0:01:03]} 24. Kh1 {[%clk 0:01:16]}  h5 {[%clk 0:01:02]} 25. Nc5 {[%clk 0:01:12]}  Qd6 {[%clk 0:01:02]} 26. Nd3 {[%clk 0:01:06]}  h4 {[%clk 0:01:01]} 27. Bf2 {[%clk 0:01:05]}  Nxf4 {[%clk 0:01:00]} 28. Bc5 {[%clk 0:01:00]}  Qh6 {[%clk 0:00:46]} 29. Bxf8 {[%clk 0:00:56]}  Kxf8 {[%clk 0:00:46]} 30. Nxf4 {[%clk 0:00:55]}  Bxf4 {[%clk 0:00:43]} 31. Bxc6 {[%clk 0:00:54]}  h3 {[%clk 0:00:43]} 32. gxh3 {[%clk 0:00:40]}  Qxc6 {[%clk 0:00:29]} 33. Rxf4 {[%clk 0:00:35]}  d4+ {[%clk 0:00:29]} 34. Kg1 {[%clk 0:00:34]}  gxh3 {[%clk 0:00:30]} 35. Qf3 {[%clk 0:00:23]}  Qb6 {[%clk 0:00:30]} 36. Rxd4 {[%clk 0:00:19]}  Qxb2 {[%clk 0:00:31]} 37. Rad1 {[%clk 0:00:18]}  Kg7 {[%clk 0:00:23]} 38. Qg3+ {[%clk 0:00:16]}  Bg6 {[%clk 0:00:22]} 39. Rd6 {[%clk 0:00:09]}  Kh6 {[%clk 0:00:22]} 1-0


[Site "https://www.chess.com"]

[Event "Titled Tuesday Blitz November 07 Early 2023"]
[White "Kotlyar, Kirill"]
[Black "lagunanivaria"]
[WhiteFideId "24145599"]
[WhiteElo "2537"]
[BlackElo "2440"]
[Result "1-0"]
[Round "7"]
[TimeControl "180+1"]
[Date "2023.11.07"]
[WhiteClock "0:00:09"]
[BlackClock "0:00:08"]
[Board "117"]

1. e4 {[%clk 0:03:00]}  c6 {[%clk 0:02:56]} 2. d4 {[%clk 0:03:00]}  d5 {[%clk 0:02:54]} 3. e5 {[%clk 0:03:00]}  Bf5 {[%clk 0:02:53]} 4. Nf3 {[%clk 0:03:01]}  e6 {[%clk 0:02:52]} 5. Be2 {[%clk 0:03:01]}  Ne7 {[%clk 0:02:51]} 6. O-O {[%clk 0:03:00]}  h6 {[%clk 0:02:51]} 7. Nbd2 {[%clk 0:02:56]}  Nd7 {[%clk 0:02:51]} 8. Nb3 {[%clk 0:02:57]}  Bh7 {[%clk 0:02:50]} 9. Bd2 {[%clk 0:02:56]}  Ng6 {[%clk 0:02:46]} 10. Ne1 {[%clk 0:02:35]}  Be7 {[%clk 0:02:41]} 11. f4 {[%clk 0:02:32]}  O-O {[%clk 0:02:40]} 12. c3 {[%clk 0:02:29]}  c5 {[%clk 0:02:39]} 13. Nf3 {[%clk 0:02:21]}  cxd4 {[%clk 0:02:38]} 14. cxd4 {[%clk 0:02:21]}  Nh4 {[%clk 0:02:32]} 15. Be1 {[%clk 0:02:04]}  Nxf3+ {[%clk 0:02:31]} 16. Bxf3 {[%clk 0:01:57]}  f6 {[%clk 0:02:26]} 17. Rc1 {[%clk 0:01:32]}  a5 {[%clk 0:02:17]} 18. Qe2 {[%clk 0:01:22]}  Qb6 {[%clk 0:02:12]} 19. Bf2 {[%clk 0:01:17]}  a4 {[%clk 0:02:09]} 20. Nc5 {[%clk 0:01:17]}  Nxc5 {[%clk 0:02:06]} 21. dxc5 {[%clk 0:01:18]}  Qc6 {[%clk 0:02:03]} 22. Rfe1 {[%clk 0:01:05]}  Bf5 {[%clk 0:01:39]} 23. g4 {[%clk 0:00:36]}  Bh7 {[%clk 0:01:24]} 24. Bd4 {[%clk 0:00:18]}  f5 {[%clk 0:01:20]} 25. Qe3 {[%clk 0:00:14]}  fxg4 {[%clk 0:01:20]} 26. Bxg4 {[%clk 0:00:14]}  Bf5 {[%clk 0:01:20]} 27. h3 {[%clk 0:00:14]}  Qe8 {[%clk 0:01:18]} 28. Re2 {[%clk 0:00:14]}  Kh7 {[%clk 0:01:14]} 29. Rg2 {[%clk 0:00:14]}  Qf7 {[%clk 0:01:12]} 30. Rf1 {[%clk 0:00:13]}  Bh4 {[%clk 0:01:09]} 31. Qe2 {[%clk 0:00:10]}  Be4 {[%clk 0:01:04]} 32. Bf3 {[%clk 0:00:09]}  Qxf4 {[%clk 0:00:58]} 33. Bxe4+ {[%clk 0:00:10]}  Qxe4 {[%clk 0:00:59]} 34. Qxe4+ {[%clk 0:00:09]}  dxe4 {[%clk 0:01:00]} 35. Rg4 {[%clk 0:00:09]}  Be7 {[%clk 0:00:51]} 36. Rxe4 {[%clk 0:00:08]}  Rac8 {[%clk 0:00:48]} 37. Rc1 {[%clk 0:00:03]}  b6 {[%clk 0:00:45]} 38. c6 {[%clk 0:00:03]}  b5 {[%clk 0:00:36]} 39. c7 {[%clk 0:00:03]}  Bg5 {[%clk 0:00:33]} 40. Rc2 {[%clk 0:00:03]}  Rf7 {[%clk 0:00:33]} 41. Bb6 {[%clk 0:00:03]}  Rd7 {[%clk 0:00:32]} 42. Kg2 {[%clk 0:00:03]}  Rd5 {[%clk 0:00:31]} 43. h4 {[%clk 0:00:02]}  Be7 {[%clk 0:00:31]} 44. a3 {[%clk 0:00:02]}  Kg6 {[%clk 0:00:31]} 45. Rg4+ {[%clk 0:00:02]}  Kf7 {[%clk 0:00:31]} 46. Re4 {[%clk 0:00:02]}  Ke8 {[%clk 0:00:31]} 47. Re3 {[%clk 0:00:03]}  Kd7 {[%clk 0:00:30]} 48. Rec3 {[%clk 0:00:04]}  g5 {[%clk 0:00:28]} 49. hxg5 {[%clk 0:00:03]}  hxg5 {[%clk 0:00:29]} 50. Re2 {[%clk 0:00:03]}  Rg8 {[%clk 0:00:27]} 51. Kf3 {[%clk 0:00:03]}  g4+ {[%clk 0:00:26]} 52. Ke4 {[%clk 0:00:04]}  g3 {[%clk 0:00:26]} 53. Rg2 {[%clk 0:00:05]}  Kc8 {[%clk 0:00:24]} 54. Rc6 {[%clk 0:00:04]}  Kd7 {[%clk 0:00:22]} 55. Rgc2 {[%clk 0:00:03]}  Rc8 {[%clk 0:00:17]} 56. Bd4 {[%clk 0:00:03]}  b4 {[%clk 0:00:13]} 57. axb4 {[%clk 0:00:03]}  Bxb4 {[%clk 0:00:14]} 58. Rb6 {[%clk 0:00:03]}  Be7 {[%clk 0:00:14]} 59. Rb7 {[%clk 0:00:03]}  a3 {[%clk 0:00:14]} 60. bxa3 {[%clk 0:00:02]}  Bxa3 {[%clk 0:00:15]} 61. Ra2 {[%clk 0:00:02]}  Be7 {[%clk 0:00:15]} 62. Rc2 {[%clk 0:00:03]}  Ra5 {[%clk 0:00:13]} 63. Bb6 {[%clk 0:00:03]}  Rd5 {[%clk 0:00:13]} 64. Rg2 {[%clk 0:00:02]}  Kc6 {[%clk 0:00:12]} 65. Rb8 {[%clk 0:00:02]}  Kd7 {[%clk 0:00:09]} 66. Rxc8 {[%clk 0:00:02]}  Kxc8 {[%clk 0:00:10]} 67. Rxg3 {[%clk 0:00:03]}  Rb5 {[%clk 0:00:10]} 68. Rg8+ {[%clk 0:00:03]}  Kb7 {[%clk 0:00:05]} 69. c8=Q+ {[%clk 0:00:04]}  Kxb6 {[%clk 0:00:06]} 70. Qxe6+ {[%clk 0:00:04]}  Kc5 {[%clk 0:00:06]} 71. Qxe7+ {[%clk 0:00:04]}  Kc4 {[%clk 0:00:07]} 72. Rc8+ {[%clk 0:00:03]}  Kb3 {[%clk 0:00:06]} 73. Qe6+ {[%clk 0:00:03]}  Kb2 {[%clk 0:00:06]} 74. Qd5 {[%clk 0:00:04]}  Rxd5 {[%clk 0:00:06]} 75. Kxd5 {[%clk 0:00:05]}  Kb3 {[%clk 0:00:06]} 76. e6 {[%clk 0:00:06]}  Kb4 {[%clk 0:00:07]} 77. e7 {[%clk 0:00:07]}  Kb5 {[%clk 0:00:07]} 78. e8=Q+ {[%clk 0:00:07]}  Kb6 {[%clk 0:00:08]} 79. Qd7 {[%clk 0:00:08]}  Ka5 {[%clk 0:00:08]} 80. Qb7 {[%clk 0:00:08]}  Ka4 {[%clk 0:00:08]} 81. Ra8# {[%clk 0:00:09]} 1-0


[Site "https://www.chess.com"]

[Event "Titled Tuesday Blitz November 07 Early 2023"]
[White "Czopor, Maciej"]
[Black "Jovic, Stanoje"]
[WhiteFideId "21805431"]
[BlackFideId "905020"]
[WhiteElo "2536"]
[BlackElo "2438"]
[Result "1-0"]
[Round "7"]
[TimeControl "180+1"]
[Date "2023.11.07"]
[WhiteClock "0:00:25"]
[BlackClock "0:00:00"]
[Board "118"]

1. c4 {[%clk 0:03:00]}  e5 {[%clk 0:02:59]} 2. Nc3 {[%clk 0:03:00]}  Nf6 {[%clk 0:02:58]} 3. e3 {[%clk 0:03:00]}  Bb4 {[%clk 0:02:56]} 4. Nge2 {[%clk 0:02:56]}  O-O {[%clk 0:02:54]} 5. a3 {[%clk 0:02:54]}  Bxc3 {[%clk 0:02:53]} 6. Nxc3 {[%clk 0:02:55]}  c6 {[%clk 0:02:52]} 7. Be2 {[%clk 0:02:39]}  d5 {[%clk 0:02:50]} 8. d4 {[%clk 0:02:36]}  exd4 {[%clk 0:02:46]} 9. Qxd4 {[%clk 0:02:37]}  dxc4 {[%clk 0:02:35]} 10. Qxc4 {[%clk 0:02:37]}  Be6 {[%clk 0:02:34]} 11. Qf4 {[%clk 0:02:34]}  Nbd7 {[%clk 0:02:23]} 12. O-O {[%clk 0:02:34]}  Nc5 {[%clk 0:02:20]} 13. Rd1 {[%clk 0:02:30]}  Qb8 {[%clk 0:02:19]} 14. Qxb8 {[%clk 0:02:23]}  Raxb8 {[%clk 0:02:19]} 15. b4 {[%clk 0:02:23]}  Nb3 {[%clk 0:02:18]} 16. Rb1 {[%clk 0:02:24]}  Nxc1 {[%clk 0:02:17]} 17. Rbxc1 {[%clk 0:02:24]}  Rfd8 {[%clk 0:02:16]} 18. f4 {[%clk 0:02:14]}  Kf8 {[%clk 0:02:14]} 19. Kf2 {[%clk 0:02:12]}  Ke7 {[%clk 0:02:11]} 20. e4 {[%clk 0:02:11]}  Bb3 {[%clk 0:02:07]} 21. Rxd8 {[%clk 0:02:08]}  Rxd8 {[%clk 0:02:07]} 22. Ke3 {[%clk 0:02:05]}  g6 {[%clk 0:01:50]} 23. g4 {[%clk 0:02:02]}  h6 {[%clk 0:01:50]} 24. h4 {[%clk 0:02:01]}  Be6 {[%clk 0:01:39]} 25. f5 {[%clk 0:01:58]}  gxf5 {[%clk 0:01:36]} 26. gxf5 {[%clk 0:01:58]}  Bc8 {[%clk 0:01:36]} 27. Kf4 {[%clk 0:01:55]}  Rg8 {[%clk 0:01:33]} 28. e5 {[%clk 0:01:53]}  Nd7 {[%clk 0:01:25]} 29. f6+ {[%clk 0:01:53]}  Kd8 {[%clk 0:01:17]} 30. Bh5 {[%clk 0:01:51]}  Ke8 {[%clk 0:01:07]} 31. Ne4 {[%clk 0:01:51]}  Kf8 {[%clk 0:00:57]} 32. Nd6 {[%clk 0:01:49]}  Nb6 {[%clk 0:00:55]} 33. Bxf7 {[%clk 0:01:47]}  Rg2 {[%clk 0:00:51]} 34. e6 {[%clk 0:01:14]}  Rf2+ {[%clk 0:00:42]} 35. Ke5 {[%clk 0:01:14]}  Re2+ {[%clk 0:00:36]} 36. Kf5 {[%clk 0:01:14]}  Rf2+ {[%clk 0:00:35]} 37. Kg6 {[%clk 0:01:15]}  Rg2+ {[%clk 0:00:14]} 38. Kxh6 {[%clk 0:01:13]}  Nd5 {[%clk 0:00:13]} 39. e7+ {[%clk 0:01:06]}  Nxe7 {[%clk 0:00:12]} 40. fxe7+ {[%clk 0:01:07]}  Kxe7 {[%clk 0:00:12]} 41. Nxc8+ {[%clk 0:01:02]}  Kxf7 {[%clk 0:00:12]} 42. Rf1+ {[%clk 0:01:02]}  Ke6 {[%clk 0:00:12]} 43. Nxa7 {[%clk 0:01:02]}  Rg3 {[%clk 0:00:11]} 44. h5 {[%clk 0:00:47]}  Rxa3 {[%clk 0:00:10]} 45. Nc8 {[%clk 0:00:43]}  Ra4 {[%clk 0:00:09]} 46. Kg5 {[%clk 0:00:38]}  Rxb4 {[%clk 0:00:06]} 47. h6 {[%clk 0:00:39]}  Rb2 {[%clk 0:00:06]} 48. Rh1 {[%clk 0:00:31]}  Rg2+ {[%clk 0:00:05]} 49. Kf4 {[%clk 0:00:31]}  Rg8 {[%clk 0:00:05]} 50. h7 {[%clk 0:00:30]}  Rh8 {[%clk 0:00:00]} 51. Kg5 {[%clk 0:00:25]} 1-0


[Site "https://www.chess.com"]

[Event "Titled Tuesday Blitz November 07 Early 2023"]
[White "Lymar, Vladislav"]
[Black "Harriott, Tyrell"]
[WhiteFideId "14162180"]
[BlackFideId "2086484"]
[WhiteElo "2526"]
[BlackElo "2349"]
[Result "1-0"]
[Round "7"]
[TimeControl "180+1"]
[Date "2023.11.07"]
[WhiteClock "0:00:03"]
[BlackClock "0:00:07"]
[Board "123"]

1. d4 {[%clk 0:03:00]}  e6 {[%clk 0:02:59]} 2. c4 {[%clk 0:03:01]}  d5 {[%clk 0:02:59]} 3. cxd5 {[%clk 0:03:01]}  exd5 {[%clk 0:03:00]} 4. Bf4 {[%clk 0:03:01]}  f5 {[%clk 0:03:00]} 5. e3 {[%clk 0:03:00]}  Ne7 {[%clk 0:02:52]} 6. h4 {[%clk 0:02:45]}  Ng6 {[%clk 0:02:51]} 7. Bg5 {[%clk 0:02:45]}  Be7 {[%clk 0:02:48]} 8. Bxe7 {[%clk 0:02:45]}  Nxe7 {[%clk 0:02:46]} 9. Nf3 {[%clk 0:02:34]}  O-O {[%clk 0:02:44]} 10. h5 {[%clk 0:02:29]}  Nd7 {[%clk 0:02:42]} 11. h6 {[%clk 0:02:26]}  g6 {[%clk 0:02:41]} 12. Nc3 {[%clk 0:02:27]}  Nf6 {[%clk 0:02:41]} 13. Ne5 {[%clk 0:02:19]}  Nc6 {[%clk 0:02:32]} 14. Nxc6 {[%clk 0:02:14]}  bxc6 {[%clk 0:02:32]} 15. Rc1 {[%clk 0:02:11]}  Rb8 {[%clk 0:02:27]} 16. b3 {[%clk 0:01:34]}  f4 {[%clk 0:02:26]} 17. exf4 {[%clk 0:01:32]}  Re8+ {[%clk 0:02:25]} 18. Be2 {[%clk 0:01:31]}  Bg4 {[%clk 0:02:12]} 19. Kf1 {[%clk 0:01:24]}  Bxe2+ {[%clk 0:02:10]} 20. Nxe2 {[%clk 0:01:24]}  Ne4 {[%clk 0:02:08]} 21. g3 {[%clk 0:01:13]}  Qe7 {[%clk 0:02:02]} 22. Rxc6 {[%clk 0:01:08]}  Qd7 {[%clk 0:01:49]} 23. Qc2 {[%clk 0:00:57]}  Qg4 {[%clk 0:01:35]} 24. Qd3 {[%clk 0:00:51]}  Qf5 {[%clk 0:01:22]} 25. Kg2 {[%clk 0:00:48]}  Qd7 {[%clk 0:01:18]} 26. Rhc1 {[%clk 0:00:41]}  Rb7 {[%clk 0:01:17]} 27. Ng1 {[%clk 0:00:38]}  Re7 {[%clk 0:01:14]} 28. Nf3 {[%clk 0:00:37]}  Nd6 {[%clk 0:01:01]} 29. Ne5 {[%clk 0:00:35]}  Qe6 {[%clk 0:01:00]} 30. Qa6 {[%clk 0:00:22]}  Qf5 {[%clk 0:00:51]} 31. Re1 {[%clk 0:00:14]}  Qh5 {[%clk 0:00:45]} 32. Qa5 {[%clk 0:00:13]}  Rb5 {[%clk 0:00:39]} 33. Qxa7 {[%clk 0:00:09]}  Qxh6 {[%clk 0:00:31]} 34. Rxc7 {[%clk 0:00:08]}  Re8 {[%clk 0:00:23]} 35. Rd7 {[%clk 0:00:06]}  Nf5 {[%clk 0:00:21]} 36. Qa6 {[%clk 0:00:04]}  Rbb8 {[%clk 0:00:18]} 37. Qf6 {[%clk 0:00:04]}  Nxd4 {[%clk 0:00:08]} 38. Qf7+ {[%clk 0:00:03]}  Kh8 {[%clk 0:00:09]} 39. Ng4 {[%clk 0:00:02]}  Rf8 {[%clk 0:00:07]} 40. Nxh6 {[%clk 0:00:02]}  Rxf7 {[%clk 0:00:07]} 41. Nxf7+ {[%clk 0:00:02]}  Kg8 {[%clk 0:00:08]} 42. Nh6+ {[%clk 0:00:02]}  Kh8 {[%clk 0:00:08]} 43. Ree7 {[%clk 0:00:03]}  Nf5 {[%clk 0:00:07]} 44. Rxh7# {[%clk 0:00:03]} 1-0


[Site "https://www.chess.com"]

[Event "Titled Tuesday Blitz November 07 Early 2023"]
[White "Pham, Le Thao Nguyen"]
[Black "gpsji27"]
[WhiteFideId "12401226"]
[WhiteElo "2526"]
[BlackElo "2354"]
[Result "1-0"]
[Round "7"]
[TimeControl "180+1"]
[Date "2023.11.07"]
[WhiteClock "0:01:20"]
[BlackClock "0:00:03"]
[Board "124"]

1. d4 {[%clk 0:03:00]}  d5 {[%clk 0:02:59]} 2. c4 {[%clk 0:02:59]}  e6 {[%clk 0:02:58]} 3. Nc3 {[%clk 0:03:00]}  Nf6 {[%clk 0:02:57]} 4. Bg5 {[%clk 0:03:00]}  Be7 {[%clk 0:02:55]} 5. e3 {[%clk 0:03:00]}  Nbd7 {[%clk 0:02:53]} 6. Qc2 {[%clk 0:02:56]}  c6 {[%clk 0:02:50]} 7. Nf3 {[%clk 0:02:56]}  h6 {[%clk 0:02:50]} 8. Bh4 {[%clk 0:02:55]}  O-O {[%clk 0:02:46]} 9. a3 {[%clk 0:02:54]}  dxc4 {[%clk 0:02:39]} 10. Bxc4 {[%clk 0:02:55]}  b5 {[%clk 0:02:33]} 11. Ba2 {[%clk 0:02:55]}  a6 {[%clk 0:02:21]} 12. Rd1 {[%clk 0:02:46]}  Bb7 {[%clk 0:02:19]} 13. O-O {[%clk 0:02:45]}  c5 {[%clk 0:02:07]} 14. dxc5 {[%clk 0:02:31]}  Bxf3 {[%clk 0:02:03]} 15. gxf3 {[%clk 0:02:32]}  Qc7 {[%clk 0:01:59]} 16. Bb1 {[%clk 0:02:30]}  g5 {[%clk 0:01:56]} 17. Bg3 {[%clk 0:02:21]}  Qc6 {[%clk 0:01:49]} 18. b4 {[%clk 0:02:16]}  Rfd8 {[%clk 0:01:45]} 19. Ne4 {[%clk 0:02:00]}  a5 {[%clk 0:01:34]} 20. Rd4 {[%clk 0:01:33]}  axb4 {[%clk 0:01:24]} 21. axb4 {[%clk 0:01:34]}  e5 {[%clk 0:01:05]} 22. Rd2 {[%clk 0:01:28]}  Nxe4 {[%clk 0:00:19]} 23. Qxe4 {[%clk 0:01:26]}  Qxe4 {[%clk 0:00:16]} 24. Bxe4 {[%clk 0:01:27]}  Ra4 {[%clk 0:00:14]} 25. Rfd1 {[%clk 0:01:23]}  Nf8 {[%clk 0:00:03]} 26. Rxd8 {[%clk 0:01:21]}  Bxd8 {[%clk 0:00:04]} 27. Rxd8 {[%clk 0:01:21]}  Rxb4 {[%clk 0:00:05]} 28. Bxe5 {[%clk 0:01:21]}  Rc4 {[%clk 0:00:03]} 29. Bd6 {[%clk 0:01:20]} 1-0


[Site "https://www.chess.com"]

[Event "Titled Tuesday Blitz November 07 Early 2023"]
[White "Balla, Tamas-Kristof"]
[Black "Toktomushev, Teimur"]
[WhiteFideId "1208497"]
[BlackFideId "14176726"]
[WhiteElo "2323"]
[BlackElo "2524"]
[Result "0-1"]
[Round "7"]
[TimeControl "180+1"]
[Date "2023.11.07"]
[WhiteClock "0:00:08"]
[BlackClock "0:00:04"]
[Board "126"]

1. e4 {[%clk 0:02:59]}  c5 {[%clk 0:02:59]} 2. c3 {[%clk 0:02:57]}  d5 {[%clk 0:02:58]} 3. exd5 {[%clk 0:02:58]}  Qxd5 {[%clk 0:02:59]} 4. d4 {[%clk 0:02:58]}  Nf6 {[%clk 0:02:49]} 5. Nf3 {[%clk 0:02:58]}  e6 {[%clk 0:02:48]} 6. Be3 {[%clk 0:02:57]}  cxd4 {[%clk 0:02:42]} 7. cxd4 {[%clk 0:02:57]}  Bb4+ {[%clk 0:02:40]} 8. Nc3 {[%clk 0:02:53]}  O-O {[%clk 0:02:38]} 9. Bd3 {[%clk 0:02:52]}  Bd7 {[%clk 0:02:38]} 10. O-O {[%clk 0:02:51]}  Bxc3 {[%clk 0:02:38]} 11. bxc3 {[%clk 0:02:52]}  Bb5 {[%clk 0:02:38]} 12. Bg5 {[%clk 0:02:25]}  Ne4 {[%clk 0:02:21]} 13. Bxe4 {[%clk 0:01:58]}  Qxe4 {[%clk 0:02:22]} 14. Re1 {[%clk 0:01:57]}  Qg6 {[%clk 0:01:53]} 15. Bf4 {[%clk 0:01:45]}  Nd7 {[%clk 0:01:46]} 16. Re3 {[%clk 0:01:40]}  Bc6 {[%clk 0:01:11]} 17. Nh4 {[%clk 0:01:15]}  Qf6 {[%clk 0:01:07]} 18. Qg4 {[%clk 0:00:56]}  h6 {[%clk 0:00:50]} 19. Nf3 {[%clk 0:00:51]}  Rfe8 {[%clk 0:00:21]} 20. Ne5 {[%clk 0:00:51]}  Qf5 {[%clk 0:00:16]} 21. Qh4 {[%clk 0:00:35]}  Nxe5 {[%clk 0:00:07]} 22. Bxe5 {[%clk 0:00:31]}  f6 {[%clk 0:00:06]} 23. Bf4 {[%clk 0:00:24]}  g5 {[%clk 0:00:03]} 24. Qxh6 {[%clk 0:00:22]}  Qxf4 {[%clk 0:00:02]} 25. Qg6+ {[%clk 0:00:17]}  Kf8 {[%clk 0:00:02]} 26. Rh3 {[%clk 0:00:18]}  Be4 {[%clk 0:00:02]} 27. Rh8+ {[%clk 0:00:16]}  Ke7 {[%clk 0:00:03]} 28. Qg7+ {[%clk 0:00:17]}  Kd6 {[%clk 0:00:02]} 29. Rh6 {[%clk 0:00:10]}  Qg4 {[%clk 0:00:02]} 30. f3 {[%clk 0:00:07]}  Bxf3 {[%clk 0:00:02]} 31. g3 {[%clk 0:00:07]}  Qe4 {[%clk 0:00:02]} 32. Qxf6 {[%clk 0:00:07]}  Qe3+ {[%clk 0:00:02]} 33. Kf1 {[%clk 0:00:07]}  Qe2+ {[%clk 0:00:03]} 34. Kg1 {[%clk 0:00:08]}  Qg2# {[%clk 0:00:04]} 0-1


[Site "https://www.chess.com"]

[Event "Titled Tuesday Blitz November 07 Early 2023"]
[White "Slovineanu, Viacheslav"]
[Black "Horak, Martin"]
[WhiteFideId "13900510"]
[BlackFideId "367095"]
[WhiteElo "2399"]
[BlackElo "2516"]
[Result "1/2-1/2"]
[Round "7"]
[TimeControl "180+1"]
[Date "2023.11.07"]
[WhiteClock "0:00:04"]
[BlackClock "0:00:06"]
[Board "129"]

1. d4 {[%clk 0:02:57]}  Nf6 {[%clk 0:03:00]} 2. Nf3 {[%clk 0:02:57]}  e6 {[%clk 0:02:58]} 3. c4 {[%clk 0:02:57]}  b6 {[%clk 0:02:54]} 4. e3 {[%clk 0:02:56]}  Bb7 {[%clk 0:02:52]} 5. Bd3 {[%clk 0:02:56]}  Bb4+ {[%clk 0:02:52]} 6. Nbd2 {[%clk 0:02:56]}  O-O {[%clk 0:02:50]} 7. O-O {[%clk 0:02:56]}  d5 {[%clk 0:02:50]} 8. a3 {[%clk 0:02:54]}  Bd6 {[%clk 0:02:49]} 9. b4 {[%clk 0:02:50]}  c5 {[%clk 0:02:35]} 10. dxc5 {[%clk 0:02:46]}  bxc5 {[%clk 0:02:36]} 11. b5 {[%clk 0:02:46]}  a6 {[%clk 0:02:31]} 12. a4 {[%clk 0:02:35]}  Nbd7 {[%clk 0:02:26]} 13. Bb2 {[%clk 0:02:34]}  Qc7 {[%clk 0:02:17]} 14. Bc3 {[%clk 0:02:16]}  Ne5 {[%clk 0:01:40]} 15. Nxe5 {[%clk 0:02:11]}  Bxe5 {[%clk 0:01:41]} 16. Bxe5 {[%clk 0:02:10]}  Qxe5 {[%clk 0:01:41]} 17. Nf3 {[%clk 0:01:59]}  Qc7 {[%clk 0:01:39]} 18. Qc2 {[%clk 0:01:50]}  h6 {[%clk 0:01:32]} 19. Rfb1 {[%clk 0:01:49]}  a5 {[%clk 0:01:26]} 20. Qc3 {[%clk 0:01:44]}  Ng4 {[%clk 0:01:19]} 21. h3 {[%clk 0:01:15]}  Nf6 {[%clk 0:01:18]} 22. Qe5 {[%clk 0:01:13]}  Qb6 {[%clk 0:01:15]} 23. Rd1 {[%clk 0:01:04]}  Rad8 {[%clk 0:01:07]} 24. Rac1 {[%clk 0:01:02]}  Rd7 {[%clk 0:00:48]} 25. cxd5 {[%clk 0:01:00]}  Rxd5 {[%clk 0:00:47]} 26. Qc3 {[%clk 0:00:55]}  Rfd8 {[%clk 0:00:45]} 27. Be2 {[%clk 0:00:55]}  Ne4 {[%clk 0:00:41]} 28. Qc2 {[%clk 0:00:45]}  R5d6 {[%clk 0:00:32]} 29. Rxd6 {[%clk 0:00:41]}  Rxd6 {[%clk 0:00:33]} 30. Rd1 {[%clk 0:00:33]}  Qd8 {[%clk 0:00:33]} 31. Rxd6 {[%clk 0:00:30]}  Qxd6 {[%clk 0:00:34]} 32. Bd3 {[%clk 0:00:29]}  f5 {[%clk 0:00:29]} 33. Bxe4 {[%clk 0:00:24]}  Bxe4 {[%clk 0:00:28]} 34. Qd2 {[%clk 0:00:20]}  Qc7 {[%clk 0:00:28]} 35. Qc3 {[%clk 0:00:15]}  Bd5 {[%clk 0:00:21]} 36. Nd2 {[%clk 0:00:14]}  c4 {[%clk 0:00:18]} 37. Nf3 {[%clk 0:00:13]}  Qc5 {[%clk 0:00:18]} 38. Qxa5 {[%clk 0:00:10]}  c3 {[%clk 0:00:18]} 39. Qd8+ {[%clk 0:00:09]}  Kh7 {[%clk 0:00:18]} 40. Nd4 {[%clk 0:00:08]}  c2 {[%clk 0:00:17]} 41. Nxc2 {[%clk 0:00:08]}  Qxc2 {[%clk 0:00:17]} 42. b6 {[%clk 0:00:09]}  Qb1+ {[%clk 0:00:16]} 43. Kh2 {[%clk 0:00:08]}  Qe4 {[%clk 0:00:17]} 44. f3 {[%clk 0:00:08]}  Qxe3 {[%clk 0:00:17]} 45. Qc7 {[%clk 0:00:07]}  Qb3 {[%clk 0:00:14]} 46. a5 {[%clk 0:00:07]}  Qb2 {[%clk 0:00:14]} 47. Kg3 {[%clk 0:00:07]}  Qa2 {[%clk 0:00:14]} 48. b7 {[%clk 0:00:06]}  Bxb7 {[%clk 0:00:14]} 49. Qxb7 {[%clk 0:00:07]}  Qxa5 {[%clk 0:00:15]} 50. Qe7 {[%clk 0:00:05]}  Qe5+ {[%clk 0:00:15]} 51. Kf2 {[%clk 0:00:04]}  f4 {[%clk 0:00:15]} 52. Qb4 {[%clk 0:00:03]}  Qe3+ {[%clk 0:00:15]} 53. Kf1 {[%clk 0:00:03]}  Qe5 {[%clk 0:00:14]} 54. Qc4 {[%clk 0:00:03]}  Qf5 {[%clk 0:00:13]} 55. Kg1 {[%clk 0:00:03]}  h5 {[%clk 0:00:13]} 56. Kh2 {[%clk 0:00:03]}  h4 {[%clk 0:00:13]} 57. Qd4 {[%clk 0:00:03]}  e5 {[%clk 0:00:11]} 58. Qd5 {[%clk 0:00:04]}  Qf6 {[%clk 0:00:11]} 59. Qe4+ {[%clk 0:00:04]}  Kh6 {[%clk 0:00:11]} 60. Qd5 {[%clk 0:00:04]}  Qf5 {[%clk 0:00:11]} 61. Kh1 {[%clk 0:00:03]}  Kg5 {[%clk 0:00:11]} 62. Qd8+ {[%clk 0:00:03]}  Qf6 {[%clk 0:00:11]} 63. Qd5 {[%clk 0:00:03]}  Kh6 {[%clk 0:00:10]} 64. Qd7 {[%clk 0:00:03]}  Qg6 {[%clk 0:00:08]} 65. Qd5 {[%clk 0:00:03]}  Qf5 {[%clk 0:00:07]} 66. Qd6+ {[%clk 0:00:02]}  Kh7 {[%clk 0:00:05]} 67. Qd5 {[%clk 0:00:03]}  Qb1+ {[%clk 0:00:05]} 68. Kh2 {[%clk 0:00:03]}  Qf5 {[%clk 0:00:04]} 69. Kh1 {[%clk 0:00:03]}  Qf6 {[%clk 0:00:04]} 70. Kh2 {[%clk 0:00:03]}  Kg6 {[%clk 0:00:05]} 71. Kh1 {[%clk 0:00:03]}  Qf5 {[%clk 0:00:04]} 72. Qd6+ {[%clk 0:00:03]}  Qf6 {[%clk 0:00:04]} 73. Qd5 {[%clk 0:00:03]}  Kg5 {[%clk 0:00:04]} 74. Qe4 {[%clk 0:00:03]}  Qf5 {[%clk 0:00:05]} 75. Qd5 {[%clk 0:00:03]}  Kf6 {[%clk 0:00:05]} 76. Qd8+ {[%clk 0:00:03]}  Kg6 {[%clk 0:00:06]} 77. Qd6+ {[%clk 0:00:03]}  Qf6 {[%clk 0:00:06]} 78. Qd5 {[%clk 0:00:04]} 1/2-1/2


[Site "https://www.chess.com"]